fUST/lending_fUST_20250921
["ID","MTS","AMOUNT","RATE_DAILY","PERIOD"]
[386558503,1758391843538,154.878561,0.00020064,4]
[386558504,1758391843621,-244.68500792,0.00020884,2]
[386558505,1758391843630,-384.00283,0.00020891,2]
[386558506,1758391843641,-384.00283,0.00020893,2]
[386558507,1758391843650,-384.002838,0.00020893,2]
[386558508,1758391843659,-227.44,0.0002098,10]
[386558509,1758391843670,-181.95274114,0.00021429,2]
[386558510,1758391843679,-480.0,0.00021429,2]
[386558511,1758391843689,-480.0,0.00021429,2]
[386558512,1758391843698,-480.0,0.00021429,2]
[386558513,1758391843707,-480.0,0.00021429,2]
[386558514,1758391843717,-7.09401358,0.00021429,2]
[386558515,1758391843729,-472.90598642,0.00021429,2]
[386558516,1758391843739,-1600.88,0.00021429,2]
[386558517,1758391843748,-480.0,0.00021429,2]
[386558518,1758391843757,-480.0,0.00021431,2]
[386558519,1758391843766,-407.87,0.00021431,2]
[386558520,1758391843775,-285.34702971,0.00021431,2]
[386558521,1758391843784,-511.23,0.00021431,2]
[386558522,1758391843794,-1347.02,0.00021431,2]
[386558523,1758391843803,-1455.23,0.00021431,2]
[386558524,1758391843813,-480.0,0.00021432,2]
[386558525,1758391843823,-1480.89,0.00021432,2]
[386558526,1758391843833,-480.0,0.00021432,2]
[386558527,1758391843842,-1070.17,0.00021432,2]
[386558528,1758391843852,-1357.77,0.00021432,2]
[386558529,1758391843862,-615.88,0.00021432,2]
[386558530,1758391843871,-912.10730401,0.00021432,2]
[386558531,1758391843883,-387.44269599,0.00021432,2]
[386558532,1758391843892,-68.21157114,0.00021432,2]
[386558541,1758391846089,-480.0,0.00020607,2]
[386558542,1758391846099,-411.78842886,0.00021432,2]
[386558543,1758391846110,-516.93,0.00021432,2]
[386558544,1758391846121,-766.72,0.00021432,2]
[386558545,1758391846130,-2807.47,0.00021432,2]
[386558546,1758391846140,-480.0,0.00021432,2]
[386558548,1758391846151,-480.11,0.00021432,2]
[386558550,1758391846161,-559.63547044,0.00021433,2]
[386558551,1758391846173,-2334.72452956,0.00021433,2]
[386558552,1758391846182,-1629.49,0.00021433,2]
[386558553,1758391846193,-480.0,0.00021433,2]
[386558554,1758391846202,-2134.98,0.00021433,2]
[386558555,1758391846211,-480.0,0.00021438,2]
[386558556,1758391846297,-480.0,0.00021439,2]
[386558557,1758391846308,-1051.11,0.00021439,2]
[386558558,1758391846318,-480.0,0.00021439,2]
[386558559,1758391846327,-569.52,0.00021439,2]
[386558560,1758391846338,-480.0,0.00021439,2]
[386558561,1758391846351,-798.82,0.00021439,2]
[386558562,1758391846361,-480.0,0.00021439,2]
[386558563,1758391846370,-480.0,0.00021439,2]
[386558564,1758391846380,-480.0,0.00021439,2]
[386558565,1758391846389,-634.7,0.00021439,2]
[386558566,1758391846399,-1057.16,0.00021439,2]
[386558567,1758391846409,-500.0,0.00021439,2]
[386558568,1758391846419,-480.0,0.00021439,2]
[386558569,1758391846428,-480.0,0.00021439,2]
[386558570,1758391846439,-552.33,0.00021439,2]
[386558571,1758391846448,-5793.03,0.00021439,2]
[386558572,1758391846458,-481.04,0.0002144,2]
[386558573,1758391846467,-441.09547044,0.0002144,2]
[386558574,1758391858807,3787.7394635,0.000199,2]
[386558575,1758391875089,175.93,0.00019221,2]
[386558576,1758391875559,351.86,0.00020137,2]
[386558577,1758391955482,169.21,0.00019218,2]
[386558578,1758391955903,338.42,0.00020133,2]
[386558580,1758391970205,-151.89436896,0.00020606,2]
[386558581,1758392008000,5021.9719755,0.00020517,2]
[386558582,1758392008024,4177.17675972,0.00020517,2]
[386558583,1758392035890,210.068965,0.00019608,2]
[386558584,1758392038575,164.68,0.00019229,2]
[386558585,1758392039000,329.37,0.00020144,2]
[386558586,1758392039788,3740.48404529,0.000199,2]
[386558587,1758392056801,263.716222,0.00019607,2]
[386558611,1758392119447,158.39,0.00019241,2]
[386558612,1758392120254,316.79,0.00020158,2]
[386558614,1758392201587,152.35,0.00019237,2]
[386558615,1758392202027,304.69,0.00020153,2]
[386558616,1758392220546,182.29400799,0.000199,2]
[386558617,1758392220577,3449.68333472,0.000199,2]
[386558618,1758392233314,526.56886548,0.00020507,2]
[386558619,1758392285803,150.0,0.00019233,2]
[386558620,1758392286240,293.06,0.00020149,2]
[386558621,1758392367742,150.0,0.0001923,2]
[386558622,1758392368152,281.78,0.00020146,2]
[386558623,1758392368583,-150.0,0.00020604,2]
[386558624,1758392416729,3510.91143147,0.000199,2]
[386558625,1758392427620,-155.863225,0.00020599,10]
[386558626,1758392430012,-33.676775,0.00020599,10]
[386558627,1758392430035,-195.0,0.00020604,2]
[386558628,1758392430059,-77.09124666,0.00020604,2]
[386558629,1758392434131,-151.24875334,0.00020604,2]
[386558630,1758392449710,150.0,0.0001923,2]
[386558631,1758392450117,290.21,0.00020146,2]
[386558634,1758392530247,150.0,0.00019248,2]
[386558635,1758392531154,279.01,0.00020164,2]
[386558641,1758392598312,768.78636833,0.000199,2]
[386558642,1758392598338,2625.09468212,0.000199,2]
[386558646,1758392612463,150.0,0.00019239,2]
[386558647,1758392612869,268.09,0.00020155,2]
[386558649,1758392659819,-300.0,0.00020603,2]
[386558650,1758392659852,-235.03891907,0.00020604,2]
[386558651,1758392659883,-288.88777255,0.00020604,2]
[386558652,1758392659913,-326.23611032,0.00020604,2]
[386558653,1758392659941,-300.0,0.00020604,2]
[386558654,1758392659971,-1200.0,0.00020604,2]
[386558655,1758392660117,-1199.0,0.00020604,2]
[386558656,1758392669852,-157.95,0.00020597,10]
[386558657,1758392679837,-789.76,0.00020597,10]
[386558658,1758392679974,-518.7942634,0.00020604,2]
[386558659,1758392680004,-216.67198622,0.00020604,2]
[386558660,1758392680038,-154.83050336,0.00020604,2]
[386558661,1758392694805,150.0,0.00019333,2]
[386558662,1758392695250,257.9,0.00020253,2]
[386558663,1758392699912,-500.0,0.00020604,2]
[386558664,1758392709906,-300.0,0.00020604,2]
[386558665,1758392709937,-480.0,0.00020604,2]
[386558666,1758392710130,-1260.22741855,0.00020605,2]
[386558667,1758392720146,-1200.0,0.00020604,2]
[386558668,1758392720191,-7600.01,0.00020605,2]
[386558669,1758392730238,-480.0,0.00020604,2]
[386558670,1758392730266,-2226.02692374,0.00020605,2]
[386558671,1758392730302,-4587.95615252,0.00020605,2]
[386558672,1758392734262,460.74775733,0.00020505,2]
[386558673,1758392777551,150.0,0.00019234,2]
[386558674,1758392777990,247.52,0.0002015,2]
[386558675,1758392780439,3281.66713214,0.000199,2]
[386558676,1758392795111,-168.0,0.00020527,2]
[386558677,1758392795142,-500.0,0.00020604,2]
[386558678,1758392795183,-480.0,0.00020604,2]
[386558679,1758392795224,-1298.76,0.00020604,2]
[386558680,1758392795253,-300.0,0.00020604,2]
[386558681,1758392795281,-151.0,0.00020605,2]
[386558682,1758392795311,-151.0,0.00020605,2]
[386558683,1758392795339,-151.0,0.00020605,2]
[386558684,1758392795367,-151.0,0.00020605,2]
[386558685,1758392795502,-151.0,0.00020605,2]
[386558686,1758392795531,-151.0,0.00020605,2]
[386558687,1758392795559,-151.0,0.00020605,2]
[386558688,1758392795587,-151.0,0.00020605,2]
[386558689,1758392795615,-151.0,0.00020605,2]
[386558690,1758392799175,-840.23200523,0.00020605,2]
[386558691,1758392799290,-6472.27598954,0.00020605,2]
[386558699,1758392859151,150.0,0.00019245,2]
[386558700,1758392859555,237.4,0.00020162,2]
[386558705,1758392882236,14934.34145429,0.000293,60]
[386558709,1758392916166,251.33757466,0.0002,7]
[386558711,1758392922544,212.55329707,0.00016,2]
[386558712,1758392926379,900.87131548,0.00019063,7]
[386558714,1758392938896,150.0,0.00019225,2]
[386558715,1758392939316,227.54,0.0002014,2]
[386558717,1758392962030,845.5538,0.000199,2]
[386558718,1758392962055,2327.60533214,0.000199,2]
[386558720,1758392979256,-394.6,0.00020601,3]
[386558721,1758392979284,-479.16,0.00020601,3]
[386558722,1758392979313,-239.58,0.00020601,3]
[386558723,1758392979341,-718.74,0.00020601,3]
[386558724,1758392979371,-300.0,0.00020603,2]
[386558725,1758392979402,-500.0,0.00020604,2]
[386558726,1758392979542,-2251.11,0.00020604,2]
[386558728,1758392983273,-233.63,0.00020604,2]
[386558729,1758392983311,-1361.89,0.00020604,2]
[386558730,1758392983346,-1149.0,0.00020604,2]
[386558731,1758392983381,-480.0,0.00020604,2]
[386558732,1758392983413,-977.98,0.00020604,2]
[386558733,1758392983444,-380.44,0.00020604,2]
[386558734,1758392990548,-834.13,0.00020604,2]
[386558735,1758392990578,-480.0,0.00020604,2]
[386558736,1758392990607,-480.0,0.00020604,2]
[386558737,1758392990639,-1140.31,0.00020604,2]
[386558738,1758392990670,-480.0,0.00020604,2]
[386558739,1758392990701,-480.0,0.00020604,2]
[386558740,1758392990733,-1048.61,0.00020604,2]
[386558741,1758393000689,-589.64046245,0.00020604,2]
[386558742,1758393000720,-500.0,0.00020604,2]
[386558743,1758393000754,-172.57238634,0.00020604,2]
[386558744,1758393000783,-180.0,0.00020604,2]
[386558745,1758393000814,-256.34322147,0.00020604,2]
[386558746,1758393000845,-500.0,0.00020604,2]
[386558747,1758393000876,-372.82999871,0.00020604,2]
[386558748,1758393000908,-500.0,0.00020604,2]
[386558749,1758393000939,-500.0,0.00020604,2]
[386558750,1758393000970,-500.0,0.00020604,2]
[386558751,1758393001006,-500.0,0.00020604,2]
[386558752,1758393001046,-302.71263475,0.00020604,2]
[386558753,1758393007325,404.88287744,0.00020506,2]
[386558754,1758393017429,150.0,0.00019321,2]
[386558755,1758393018397,217.93,0.00020241,2]
[386558756,1758393020754,-300.0,0.00020603,2]
[386558757,1758393020784,-1131.0,0.00020603,2]
[386558758,1758393020817,-251.81259256,0.00020604,2]
[386558759,1758393020848,-500.0,0.00020604,2]
[386558760,1758393020879,-500.0,0.00020604,2]
[386558761,1758393020916,-500.0,0.00020604,2]
[386558762,1758393020958,-500.0,0.00020604,2]
[386558763,1758393020997,-500.0,0.00020604,2]
[386558764,1758393021044,-350.17383481,0.00020604,2]
[386558765,1758393021086,-434.03714526,0.00020604,2]
[386558766,1758393021281,-65.96285474,0.00020604,2]
[386558767,1758393021323,-500.0,0.00020604,2]
[386558768,1758393021362,-500.0,0.00020604,2]
[386558769,1758393021399,-292.51320887,0.00020604,2]
[386558770,1758393021440,-113.91,0.00020604,2]
[386558771,1758393021475,-480.0,0.00020604,2]
[386558772,1758393021510,-1244.64,0.00020604,2]
[386558773,1758393021545,-264.75,0.00020604,2]
[386558774,1758393021579,-480.0,0.00020604,2]
[386558775,1758393021613,-538.47,0.00020604,2]
[386558776,1758393021650,-480.0,0.00020604,2]
[386558777,1758393030635,-1847.27,0.00020604,2]
[386558778,1758393030664,-438.93918859,0.00020604,2]
[386558779,1758393030691,-480.0,0.00020605,2]
[386558780,1758393030719,-480.0,0.00020605,2]
[386558781,1758393030749,-480.0,0.00020605,2]
[386558782,1758393030776,-480.0,0.00020605,2]
[386558783,1758393030804,-480.0,0.00020605,2]
[386558784,1758393030833,-147.59162282,0.00020605,2]
[386558785,1758393030952,-332.40837718,0.00020605,2]
[386558786,1758393030980,-480.0,0.00020605,2]
[386558787,1758393031011,-480.0,0.00020605,2]
[386558788,1758393031042,-480.0,0.00020605,2]
[386558789,1758393031071,-480.0,0.00020605,2]
[386558790,1758393031099,-480.0,0.00020605,2]
[386558791,1758393031128,-480.0,0.00020605,2]
[386558792,1758393031156,-500.0,0.00020605,2]
[386558793,1758393031183,-480.0,0.00020605,2]
[386558794,1758393031211,-480.0,0.00020605,2]
[386558795,1758393031240,-155.19324564,0.00020605,2]
[386558796,1758393031354,-344.80675436,0.00020605,2]
[386558797,1758393031382,-480.0,0.00020605,2]
[386558798,1758393031411,-480.0,0.00020605,2]
[386558799,1758393031441,-480.0,0.00020605,2]
[386558800,1758393031471,-480.0,0.00020605,2]
[386558801,1758393031501,-758.3,0.00020605,2]
[386558802,1758393031531,-480.0,0.00020605,2]
[386558804,1758393031559,-480.0,0.00020605,2]
[386558805,1758393031588,-480.0,0.00020605,2]
[386558806,1758393031619,-480.0,0.00020605,2]
[386558856,1758393032216,-480.0,0.00020605,2]
[386558858,1758393032226,-201.01285871,0.00020605,2]
[386558860,1758393032238,-991.15714129,0.00020605,2]
[386558862,1758393032248,-480.0,0.00020605,2]
[386558864,1758393032258,-480.0,0.00020605,2]
[386558866,1758393032268,-480.0,0.00020605,2]
[386558868,1758393032277,-480.0,0.00020605,2]
[386558870,1758393032287,-490.39641475,0.00020605,2]
[386558871,1758393032296,-480.0,0.00020605,2]
[386558874,1758393032306,-1374.07,0.00020605,2]
[386558876,1758393032315,-480.0,0.00020605,2]
[386558878,1758393032325,-480.0,0.00020605,2]
[386558880,1758393032334,-480.0,0.00020605,2]
[386558881,1758393032343,-480.0,0.00020605,2]
[386558883,1758393032352,-485.35226245,0.00020605,2]
[386558885,1758393032361,-480.0,0.00020605,2]
[386558887,1758393032370,-480.0,0.00020605,2]
[386558889,1758393032379,-2472.96,0.00020605,2]
[386558891,1758393032388,-480.0,0.00020605,2]
[386558893,1758393032397,-160.0,0.00020605,2]
[386558895,1758393032406,-160.0,0.00020605,2]
[386558897,1758393032415,-480.0,0.00020606,2]
[386558899,1758393032424,-483.92561366,0.00020606,2]
[386558901,1758393032433,-480.0,0.00020606,2]
[386558903,1758393032443,-487.39429315,0.00020606,2]
[386558905,1758393032452,-483.99754173,0.00020606,2]
[386558907,1758393032461,-268.51629598,0.00020606,2]
[386558909,1758393032470,-483.07953942,0.00020606,2]
[386558910,1758393032479,-489.76442782,0.00020606,2]
[386558912,1758393032488,-484.2633128,0.00020606,2]
[386558914,1758393032497,-460.4928213,0.00020606,2]
[386558997,1758393037976,-352.8642992,0.00020604,2]
[386558998,1758393037986,-500.0,0.00020604,2]
[386558999,1758393037995,-500.0,0.00020604,2]
[386559000,1758393038004,-398.75268998,0.00020604,2]
[386559001,1758393038014,-480.0,0.00020604,2]
[386559002,1758393038023,-25.13627805,0.00020606,2]
[386559003,1758393038039,-480.0,0.00020606,2]
[386559004,1758393038048,-481.83640574,0.00020606,2]
[386559005,1758393038058,-483.23820562,0.00020606,2]
[386559006,1758393038067,-485.89337091,0.00020606,2]
[386559007,1758393038078,-480.0,0.00020606,2]
[386559008,1758393038088,-480.0,0.00020606,2]
[386559009,1758393038097,-374.88631581,0.00020606,2]
[386559010,1758393038108,-483.19552912,0.00020606,2]
[386559011,1758393038117,-621.35,0.00020606,2]
[386559013,1758393038126,-482.91,0.00020606,2]
[386559014,1758393038135,-480.0,0.00020606,2]
[386559015,1758393038145,-485.75963669,0.00020606,2]
[386559016,1758393038155,-480.0,0.00020606,2]
[386559017,1758393038164,-480.0,0.00020606,2]
[386559018,1758393038173,-480.0,0.00020606,2]
[386559019,1758393038183,-480.0,0.00020606,2]
[386559020,1758393038193,-480.0,0.00020606,2]
[386559021,1758393038203,-480.0,0.00020606,2]
[386559022,1758393038211,-484.17814416,0.00020606,2]
[386559023,1758393038221,-483.17990022,0.00020606,2]
[386559024,1758393038231,-480.0,0.00020606,2]
[386559025,1758393038240,-483.33235032,0.00020606,2]
[386559026,1758393038250,-480.0,0.00020606,2]
[386559027,1758393038261,-482.6289227,0.00020606,2]
[386559028,1758393038271,-559.50437615,0.00020606,2]
[386559029,1758393038280,-480.0,0.00020606,2]
[386559030,1758393038289,-480.0,0.00020606,2]
[386559031,1758393038298,-326.37779866,0.00020606,2]
[386559032,1758393038314,-153.62220134,0.00020606,2]
[386559033,1758393038323,-480.0,0.00020606,2]
[386559034,1758393038333,-480.0,0.00020606,2]
[386559035,1758393038342,-504.16,0.00020606,2]
[386559036,1758393038351,-480.0,0.00020606,2]
[386559037,1758393038361,-480.0,0.00020606,2]
[386559038,1758393038370,-307.56307314,0.00020606,2]
[386559039,1758393038380,-581.98,0.00020606,2]
[386559040,1758393038389,-480.0,0.00020606,2]
[386559041,1758393038398,-480.0,0.00020606,2]
[386559042,1758393038408,-480.0,0.00020606,2]
[386559043,1758393038416,-480.0,0.00020606,2]
[386559044,1758393038426,-500.0,0.00020606,2]
[386559045,1758393038435,-951.54,0.00020606,2]
[386559046,1758393038444,-480.0,0.00020606,2]
[386559047,1758393038454,-480.0,0.00020606,2]
[386559048,1758393038463,-480.0,0.00020606,2]
[386559049,1758393038473,-480.0,0.00020606,2]
[386559050,1758393038483,-480.0,0.00020606,2]
[386559051,1758393038492,-480.0,0.00020606,2]
[386559052,1758393038501,-480.0,0.00020606,2]
[386559053,1758393038511,-548.23,0.00020606,2]
[386559054,1758393038521,-1453.1,0.00020606,2]
[386559055,1758393038531,-480.0,0.00020606,2]
[386559056,1758393038540,-983.45,0.00020606,2]
[386559057,1758393038549,-480.0,0.00020606,2]
[386559058,1758393038558,-480.0,0.00020606,2]
[386559059,1758393038568,-466.2589212,0.00020606,2]
[386559060,1758393038578,-480.0,0.00020606,2]
[386559061,1758393038587,-1819.15,0.00020606,2]
[386559062,1758393038597,-480.0,0.00020606,2]
[386559063,1758393038606,-480.0,0.00020606,2]
[386559064,1758393038615,-480.0,0.00020606,2]
[386559065,1758393038625,-480.0,0.00020606,2]
[386559066,1758393038634,-480.0,0.00020606,2]
[386559067,1758393038643,-480.0,0.00020606,2]
[386559068,1758393038653,-480.0,0.00020606,2]
[386559069,1758393038662,-217.50100791,0.00020606,2]
[386559070,1758393038672,-480.0,0.00020606,2]
[386559071,1758393038681,-480.0,0.00020606,2]
[386559072,1758393038690,-480.0,0.00020606,2]
[386559073,1758393038700,-480.0,0.00020606,2]
[386559074,1758393038709,-480.0,0.00020606,2]
[386559075,1758393038718,-160.0,0.00020606,2]
[386559076,1758393038728,-160.0,0.00020606,2]
[386559077,1758393038737,-559.34915716,0.00020607,2]
[386559078,1758393038747,-480.0,0.00020607,2]
[386559079,1758393038756,-480.0,0.00020607,2]
[386559080,1758393038766,-488.81539216,0.00020607,2]
[386559081,1758393038775,-435.83,0.00020607,2]
[386559082,1758393038784,-480.0,0.00020607,2]
[386559083,1758393038793,-480.0,0.00020607,2]
[386559084,1758393038803,-480.0,0.00020607,2]
[386559085,1758393038812,-480.0,0.00020607,2]
[386559086,1758393038822,-480.0,0.00020607,2]
[386559087,1758393038832,-480.0,0.00020607,2]
[386559088,1758393038841,-278.29296045,0.00020607,2]
[386559089,1758393038851,-480.0,0.00020607,2]
[386559090,1758393038860,-480.0,0.00020607,2]
[386559091,1758393038869,-480.0,0.00020607,2]
[386559092,1758393038879,-480.0,0.00020607,2]
[386559093,1758393038888,-480.0,0.00020607,2]
[386559094,1758393038898,-480.0,0.00020607,2]
[386559095,1758393038907,-480.0,0.00020607,2]
[386559096,1758393038916,-480.0,0.00020607,2]
[386559097,1758393038926,-481.21593913,0.00020607,2]
[386559098,1758393038935,-480.0,0.00020607,2]
[386559099,1758393038944,-480.0,0.00020607,2]
[386559100,1758393038953,-480.0,0.00020607,2]
[386559101,1758393038962,-480.0,0.00020607,2]
[386559102,1758393038971,-480.0,0.00020607,2]
[386559103,1758393038981,-487.03564083,0.00020607,2]
[386559104,1758393038990,-480.0,0.00020607,2]
[386559105,1758393038999,-486.15753045,0.00020607,2]
[386559106,1758393039009,-489.32028551,0.00020607,2]
[386559107,1758393039018,-500.0,0.00020608,2]
[386559108,1758393039030,-480.0,0.00020609,2]
[386559109,1758393039040,-776.53,0.00020609,2]
[386559110,1758393039049,-483.04340236,0.00020609,2]
[386559111,1758393039059,-482.11502833,0.00020609,2]
[386559112,1758393039068,-480.0,0.00020609,2]
[386559113,1758393039078,-479.3059457,0.00020609,2]
[386559114,1758393039087,-480.0,0.00020609,2]
[386559115,1758393039096,-482.53311514,0.00020609,2]
[386559116,1758393039105,-480.76422471,0.00020609,2]
[386559117,1758393039115,-484.1518559,0.00020609,2]
[386559118,1758393039124,-480.0,0.00020609,2]
[386559119,1758393039134,-500.0,0.00020609,2]
[386559120,1758393039143,-542.56,0.00020609,2]
[386559121,1758393039152,-1365.37,0.00020609,2]
[386559122,1758393039162,-1043.54,0.00020609,2]
[386559123,1758393039171,-480.0,0.00020609,2]
[386559124,1758393039180,-1846.05,0.0002061,2]
[386559125,1758393039189,-480.0,0.0002061,2]
[386559126,1758393039199,-4374.25330371,0.0002061,2]
[386559127,1758393039265,-4342.956325,0.0002061,2]
[386559128,1758393039311,167.98712256,0.00020516,2]
[386559129,1758393039340,12996.122578,0.00020516,2]
[386559184,1758393040082,-2268.03037129,0.0002061,2]
[386559185,1758393040091,-568.53,0.0002061,2]
[386559187,1758393040100,-1131.72,0.0002061,2]
[386559190,1758393040110,-480.0,0.0002061,2]
[386559192,1758393040120,-480.0,0.0002061,2]
[386559194,1758393040130,-1081.13,0.0002061,2]
[386559196,1758393040139,-1369.07499905,0.0002061,2]
[386559198,1758393040148,-480.0,0.0002061,2]
[386559200,1758393040158,-480.0,0.0002061,2]
[386559202,1758393040168,-5441.65,0.0002061,2]
[386559206,1758393040275,-4994.75077629,0.00020611,2]
[386559209,1758393040291,-1595.8,0.00020611,2]
[386559213,1758393040358,-3724.15376204,0.00020611,2]
[386559214,1758393040369,-357.46,0.00020611,2]
[386559215,1758393040381,-1700.0,0.00020611,2]
[386559216,1758393040392,-13079.52622857,0.00020611,2]
[386559217,1758393040403,-2318.01112595,0.00020611,2]
[386559218,1758393040648,-1089.82,0.00020605,2]
[386559219,1758393040754,-5886.57486846,0.00020611,2]
[386559220,1758393040849,-10000.01,0.00020611,2]
[386559225,1758393043134,-30818.25522961,0.00020611,2]
[386559231,1758393046130,-29786.59265387,0.00020611,2]
[386559232,1758393046185,-6318.167152,0.00020611,2]
[386559233,1758393048555,-10000.01,0.00020611,2]
[386559234,1758393096720,150.0,0.00019218,2]
[386559235,1758393097126,208.56,0.00020133,2]
[386559249,1758393124165,-300.0,0.00020603,2]
[386559250,1758393124189,-38.74318048,0.00020604,2]
[386559251,1758393136436,168.0,0.00020508,2]
[386559252,1758393140947,-448.0,0.00020603,2]
[386559253,1758393140976,-165.12599824,0.00020604,2]
[386559254,1758393141112,-500.0,0.00020604,2]
[386559255,1758393141143,-500.0,0.00020604,2]
[386559256,1758393141175,-279.26201746,0.00020604,2]
[386559257,1758393141205,-288.28539727,0.00020604,2]
[386559258,1758393141236,-500.0,0.00020604,2]
[386559259,1758393141267,-500.0,0.00020604,2]
[386559260,1758393141297,-500.0,0.00020604,2]
[386559261,1758393141327,-624.53537399,0.00020604,2]
[386559262,1758393141358,-369.98843262,0.00020604,2]
[386559263,1758393141389,-149.61556084,0.00020604,2]
[386559264,1758393149315,3067.38716103,0.000199,2]
[386559265,1758393150884,-350.38443916,0.00020604,2]
[386559266,1758393150915,-480.0,0.00020604,2]
[386559267,1758393150945,-1370.94,0.00020604,2]
[386559268,1758393150973,-480.0,0.00020604,2]
[386559269,1758393151002,-480.0,0.00020604,2]
[386559270,1758393151132,-762.96,0.00020604,2]
[386559271,1758393151161,-480.0,0.00020604,2]
[386559272,1758393151191,-206.94112168,0.00020604,2]
[386559273,1758393151469,-627.94331748,0.00020604,2]
[386559274,1758393153591,168.055172,0.00019612,2]
[386559275,1758393160962,-149.61556084,0.00020604,2]
[386559276,1758393160999,-1224.42,0.00020604,2]
[386559277,1758393161033,-480.0,0.00020604,2]
[386559278,1758393161068,-480.0,0.00020604,2]
[386559279,1758393161106,-2501.16,0.00020604,2]
[386559280,1758393161236,-329.61887832,0.00020604,2]
[386559281,1758393170961,-183.23112168,0.00020604,2]
[386559282,1758393170992,-480.0,0.00020604,2]
[386559283,1758393171022,-1147.76,0.00020604,2]
[386559284,1758393171050,-489.64,0.00020604,2]
[386559285,1758393171083,-480.0,0.00020604,2]
[386559286,1758393172614,1199.6,0.00020604,2]
[386559287,1758393173300,480.0,0.00020604,2]
[386559288,1758393175904,1284.1194935,0.00019766,2]
[386559289,1758393176886,150.0,0.00019334,2]
[386559290,1758393177848,208.06,0.00020255,2]
[386559292,1758393182742,300.0,0.00020604,2]
[386559293,1758393184225,480.0,0.00020604,2]
[386559294,1758393192217,160.0,0.00020604,2]
[386559295,1758393196339,176.96826314,0.00020604,2]
[386559296,1758393206065,-303.03173686,0.00020604,2]
[386559297,1758393206094,-1172.18,0.00020604,2]
[386559298,1758393212550,480.0,0.00020604,2]
[386559299,1758393212815,480.0,0.00020604,2]
[386559300,1758393218451,480.0,0.00020604,2]
[386559301,1758393229693,650.76,0.00020604,2]
[386559302,1758393236098,480.0,0.00020604,2]
[386559303,1758393237257,480.0,0.00020604,2]
[386559304,1758393240947,1383.02,0.00020604,2]
[386559305,1758393243077,300.0,0.00020604,2]
[386559306,1758393249940,1308.48,0.00020604,2]
[386559307,1758393257335,480.0,0.00020604,2]
[386559308,1758393260674,150.0,0.00019245,2]
[386559309,1758393261249,198.94,0.00020161,2]
[386559310,1758393270937,178.38652628,0.00020604,2]
[386559311,1758393270962,301.61347372,0.00020604,2]
[386559312,1758393274629,587.57612969,0.00020604,2]
[386559313,1758393274662,441.4466266,0.00020604,2]
[386559314,1758393275810,500.0,0.00020604,2]
[386559315,1758393275838,261.13042609,0.00020604,2]
[386559316,1758393275869,152.11310989,0.00020604,2]
[386559317,1758393275900,500.0,0.00020604,2]
[386559318,1758393275936,500.0,0.00020604,2]
[386559319,1758393275972,300.13778211,0.00020604,2]
[386559320,1758393276216,-160.0,0.00020605,2]
[386559322,1758393292081,354.27251776,0.00020505,2]
[386559323,1758393330177,2965.1409223,0.000199,2]